[Event "*** Titled Tuesday Blitz"]
[Site "Chess.com"]
[Date "2020.04.21"]
[Round "5"]
[White "Gubajdullin"]
[Black "dukicz123"]
[Result "1-0"]
[WhiteElo "2440"]
[BlackElo "2582"]
[TimeControl "180+1"]
[EndTime "10:57:48 PDT"]
[Termination "Gubajdullin won on time"]

1. d4 {[%clk 0:03:00.9]} 1... Nf6 {[%clk 0:02:59.9]} 2. Bf4 {[%clk 0:02:57.9]}
2... g6 {[%clk 0:02:59.9]} 3. e3 {[%clk 0:02:57.9]} 3... Bg7 {[%clk 0:03:00.2]}
4. Nf3 {[%clk 0:02:58.2]} 4... O-O {[%clk 0:02:59.7]} 5. Be2 {[%clk 0:02:58.5]}
5... c5 {[%clk 0:02:59.7]} 6. O-O {[%clk 0:02:58.3]} 6... d6 {[%clk 0:02:59.4]}
7. dxc5 {[%clk 0:02:54.7]} 7... dxc5 {[%clk 0:02:58.9]} 8. Qxd8 {[%clk
0:02:54.8]} 8... Rxd8 {[%clk 0:02:59.8]} 9. Nc3 {[%clk 0:02:54.9]} 9... Nc6
{[%clk 0:02:52.4]} 10. Rfd1 {[%clk 0:02:54.5]} 10... Bf5 {[%clk 0:02:49.2]} 11.
Ne1 {[%clk 0:02:42.5]} 11... Nb4 {[%clk 0:02:10.2]} 12. Bf3 {[%clk 0:02:41.2]}
12... Nxc2 {[%clk 0:02:04.1]} 13. Nxc2 {[%clk 0:02:40.3]} 13... Bxc2 {[%clk
0:02:05]} 14. Rdc1 {[%clk 0:02:39.8]} 14... Rd2 {[%clk 0:01:12.1]} 15. e4 {[%clk
0:02:37.6]} 15... Rad8 {[%clk 0:01:12.2]} 16. e5 {[%clk 0:02:31.8]} 16... Nh5
{[%clk 0:01:05.6]} 17. Bxd2 {[%clk 0:02:27.6]} 17... Rxd2 {[%clk 0:01:06.5]} 18.
Be4 {[%clk 0:02:22.5]} 18... Bxe4 {[%clk 0:01:00.8]} 19. Nxe4 {[%clk 0:02:21.2]}
19... Rd4 {[%clk 0:01:00.5]} 20. Nxc5 {[%clk 0:02:18.9]} 20... b6 {[%clk
0:01:00.5]} 21. Nb3 {[%clk 0:02:13.9]} 21... Rd8 {[%clk 0:00:55.6]} 22. Re1
{[%clk 0:02:11.8]} 22... Nf4 {[%clk 0:00:51.6]} 23. Rad1 {[%clk 0:02:09.9]}
23... Nd5 {[%clk 0:00:48.2]} 24. e6 {[%clk 0:02:01.8]} 24... Bxb2 {[%clk
0:00:43.9]} 25. Re2 {[%clk 0:01:54.3]} 25... Bg7 {[%clk 0:00:40.5]} 26. g3
{[%clk 0:01:31.9]} 26... Rd6 {[%clk 0:00:37.4]} 27. exf7+ {[%clk 0:01:25.7]}
27... Kxf7 {[%clk 0:00:38.3]} 28. Red2 {[%clk 0:01:21.1]} 28... e6 {[%clk
0:00:33.7]} 29. Rc1 {[%clk 0:01:20.5]} 29... Ke7 {[%clk 0:00:19.8]} 30. Nd4
{[%clk 0:01:18.1]} 30... Bxd4 {[%clk 0:00:15.2]} 31. Rxd4 {[%clk 0:01:17]} 31...
b5 {[%clk 0:00:16]} 32. g4 {[%clk 0:01:08.6]} 32... Rb6 {[%clk 0:00:15.4]} 33.
g5 {[%clk 0:01:07.2]} 33... Kd6 {[%clk 0:00:15.6]} 34. Rh4 {[%clk 0:01:05.9]}
34... Rb7 {[%clk 0:00:14.1]} 35. Re4 {[%clk 0:00:59.2]} 35... b4 {[%clk
0:00:12.4]} 36. Rc2 {[%clk 0:00:56.2]} 36... a5 {[%clk 0:00:12.2]} 37. h4 {[%clk
0:00:53.7]} 37... Nc3 {[%clk 0:00:09.3]} 38. Rc4 {[%clk 0:00:48.9]} 38... Nd5
{[%clk 0:00:07.9]} 39. Rc6+ {[%clk 0:00:47.6]} 39... Ke5 {[%clk 0:00:07.8]} 40.
Ra6 {[%clk 0:00:43.6]} 40... Rb5 {[%clk 0:00:07.1]} 41. Re2+ {[%clk 0:00:42.3]}
41... Kf4 {[%clk 0:00:07.3]} 42. Raxe6 {[%clk 0:00:40.7]} 42... Nc3 {[%clk
0:00:06.2]} 43. Rd2 {[%clk 0:00:32.5]} 43... a4 {[%clk 0:00:06.6]} 44. Rd4+
{[%clk 0:00:28]} 44... Kf5 {[%clk 0:00:06.6]} 45. Re3 {[%clk 0:00:22.2]} 45...
b3 {[%clk 0:00:06.2]} 46. axb3 {[%clk 0:00:20.8]} 46... axb3 {[%clk 0:00:07.1]}
47. Rxc3 {[%clk 0:00:17.7]} 47... b2 {[%clk 0:00:08]} 48. Rd1 {[%clk 0:00:17]}
48... b1=Q {[%clk 0:00:08.9]} 49. Rxb1 {[%clk 0:00:16.4]} 49... Rxb1+ {[%clk
0:00:09.8]} 50. Kg2 {[%clk 0:00:16.1]} 50... Kg4 {[%clk 0:00:08]} 51. Rc4+
{[%clk 0:00:14.9]} 51... Kh5 {[%clk 0:00:08.5]} 52. f3 {[%clk 0:00:13.3]} 52...
Rc1 {[%clk 0:00:08.1]} 53. Rxc1 {[%clk 0:00:10.8]} 1-0

[Event "*** Titled Tuesday Blitz"]
[Site "Chess.com"]
[Date "2020.04.21"]
[Round "5"]
[White "algatar2020"]
[Black "Berant"]
[Result "1-0"]
[WhiteElo "1956"]
[BlackElo "2311"]
[TimeControl "180+1"]
[EndTime "10:57:48 PDT"]
[Termination "algatar2020 won by checkmate"]

1. d4 {[%clk 0:03:00]} 1... Nf6 {[%clk 0:02:59.4]} 2. Nf3 {[%clk 0:02:59.4]}
2... e6 {[%clk 0:02:58.7]} 3. Bf4 {[%clk 0:02:59.4]} 3... d5 {[%clk 0:02:58.1]}
4. e3 {[%clk 0:02:59.1]} 4... c5 {[%clk 0:02:56.8]} 5. c3 {[%clk 0:02:58.8]}
5... Nc6 {[%clk 0:02:56.5]} 6. Nbd2 {[%clk 0:02:58.5]} 6... Bd6 {[%clk
0:02:55.8]} 7. Bg3 {[%clk 0:02:58]} 7... O-O {[%clk 0:02:55.1]} 8. Bd3 {[%clk
0:02:57.4]} 8... cxd4 {[%clk 0:02:54.9]} 9. exd4 {[%clk 0:02:57.2]} 9... Qc7
{[%clk 0:02:54.7]} 10. Qe2 {[%clk 0:02:56.1]} 10... Re8 {[%clk 0:02:50.7]} 11.
O-O-O {[%clk 0:02:54.1]} 11... e5 {[%clk 0:02:44.9]} 12. dxe5 {[%clk 0:02:52]}
12... Nxe5 {[%clk 0:02:44.5]} 13. Nxe5 {[%clk 0:02:51.1]} 13... Bxe5 {[%clk
0:02:45.4]} 14. Qf1 {[%clk 0:02:45.9]} 14... Bd7 {[%clk 0:02:24.4]} 15. Kb1
{[%clk 0:02:44.9]} 15... Rac8 {[%clk 0:02:22.8]} 16. Nf3 {[%clk 0:02:40.2]}
16... Bxg3 {[%clk 0:02:12.7]} 17. hxg3 {[%clk 0:02:39.4]} 17... Ne4 {[%clk
0:02:10.7]} 18. Nd2 {[%clk 0:02:30.4]} 18... Bf5 {[%clk 0:02:08.2]} 19. Nxe4
{[%clk 0:02:29.6]} 19... Bxe4 {[%clk 0:02:03.4]} 20. f3 {[%clk 0:02:24.8]} 20...
Bg6 {[%clk 0:01:49.5]} 21. g4 {[%clk 0:02:23.6]} 21... Qf4 {[%clk 0:01:41.5]}
22. Qf2 {[%clk 0:02:10.6]} 22... Re3 {[%clk 0:01:39]} 23. Bxg6 {[%clk 0:02:10]}
23... hxg6 {[%clk 0:01:36.2]} 24. Rxd5 {[%clk 0:02:06.9]} 24... Rce8 {[%clk
0:01:35.2]} 25. Rd2 {[%clk 0:02:03.2]} 25... g5 {[%clk 0:01:26.7]} 26. g3 {[%clk
0:01:39.2]} 26... Qf6 {[%clk 0:01:24.1]} 27. f4 {[%clk 0:01:26.1]} 27... gxf4
{[%clk 0:01:18.9]} 28. gxf4 {[%clk 0:01:12.3]} 28... Qg6+ {[%clk 0:01:18.4]} 29.
Kc1 {[%clk 0:01:10.5]} 29... Qe4 {[%clk 0:01:06.6]} 30. Qh4 {[%clk 0:01:01.4]}
30... Kf8 {[%clk 0:00:24.1]} 31. Rd7 {[%clk 0:00:45.2]} 31... Qxh1+ {[%clk
0:00:11.4]} 32. Qxh1 {[%clk 0:00:43.6]} 32... Re1+ {[%clk 0:00:12]} 33. Qxe1
{[%clk 0:00:43.7]} 33... Rxe1+ {[%clk 0:00:12.8]} 34. Kd2 {[%clk 0:00:44]} 34...
Rf1 {[%clk 0:00:12.6]} 35. Ke3 {[%clk 0:00:41.9]} 35... Rg1 {[%clk 0:00:11.9]}
36. Rxb7 {[%clk 0:00:37]} 36... Rxg4 {[%clk 0:00:11.4]} 37. Rxa7 {[%clk
0:00:36.4]} 37... f5 {[%clk 0:00:09]} 38. a4 {[%clk 0:00:34.3]} 38... Rg3+
{[%clk 0:00:09.1]} 39. Kf2 {[%clk 0:00:32.8]} 39... Rd3 {[%clk 0:00:07.9]} 40.
Rb7 {[%clk 0:00:31.6]} 40... Rd5 {[%clk 0:00:02.7]} 41. b4 {[%clk 0:00:27.9]}
41... Rd3 {[%clk 0:00:02.8]} 42. Rc7 {[%clk 0:00:27.3]} 42... g5 {[%clk
0:00:01.8]} 43. fxg5 {[%clk 0:00:27.1]} 43... f4 {[%clk 0:00:01.9]} 44. g6
{[%clk 0:00:27.1]} 44... Kg8 {[%clk 0:00:02.8]} 45. a5 {[%clk 0:00:26.6]} 45...
Kh8 {[%clk 0:00:03]} 46. a6 {[%clk 0:00:26.1]} 46... Kg8 {[%clk 0:00:03.6]} 47.
a7 {[%clk 0:00:26]} 47... Rd8 {[%clk 0:00:04.1]} 48. b5 {[%clk 0:00:26.1]} 48...
f3 {[%clk 0:00:03.8]} 49. b6 {[%clk 0:00:25.9]} 49... Kh8 {[%clk 0:00:04.4]} 50.
b7 {[%clk 0:00:24.9]} 50... Rg8 {[%clk 0:00:04.2]} 51. b8=Q {[%clk 0:00:24.5]}
51... Rxb8 {[%clk 0:00:01.4]} 52. axb8=Q# {[%clk 0:00:20.9]} 1-0

[Event "*** Titled Tuesday Blitz"]
[Site "Chess.com"]
[Date "2020.04.21"]
[Round "5"]
[White "S2PAc"]
[Black "mishanick"]
[Result "1/2-1/2"]
[WhiteElo "2789"]
[BlackElo "3051"]
[TimeControl "180+1"]
[EndTime "10:57:49 PDT"]
[Termination "Game drawn by repetition"]

1. d4 {[%clk 0:03:00.5]} 1... Nf6 {[%clk 0:02:30.5]} 2. g3 {[%clk 0:03:00.5]}
2... d5 {[%clk 0:02:30.2]} 3. Bg2 {[%clk 0:03:00.9]} 3... c6 {[%clk 0:02:30.1]}
4. Nf3 {[%clk 0:03:01.3]} 4... Bf5 {[%clk 0:02:29.8]} 5. O-O {[%clk 0:03:01.8]}
5... e6 {[%clk 0:02:30.5]} 6. c4 {[%clk 0:03:02.4]} 6... Nbd7 {[%clk 0:02:29.4]}
7. Nc3 {[%clk 0:03:02.9]} 7... h6 {[%clk 0:02:29.4]} 8. Qb3 {[%clk 0:03:02.9]}
8... Qb6 {[%clk 0:02:28.9]} 9. c5 {[%clk 0:03:03.5]} 9... Qxb3 {[%clk 0:02:29]}
10. axb3 {[%clk 0:03:04.4]} 10... a6 {[%clk 0:02:29.6]} 11. b4 {[%clk 0:03:05]}
11... Rc8 {[%clk 0:02:28.4]} 12. Nd2 {[%clk 0:03:05.2]} 12... Be7 {[%clk
0:02:28.2]} 13. Nb3 {[%clk 0:03:05.4]} 13... Bd8 {[%clk 0:02:27.3]} 14. Bf4
{[%clk 0:03:05.9]} 14... O-O {[%clk 0:02:26.9]} 15. Bd6 {[%clk 0:03:06]} 15...
Re8 {[%clk 0:02:27.1]} 16. f4 {[%clk 0:03:06.9]} 16... Ne4 {[%clk 0:02:24.1]}
17. Bxe4 {[%clk 0:03:06.3]} 17... Bxe4 {[%clk 0:02:25]} 18. Na5 {[%clk
0:03:06.6]} 18... Bxa5 {[%clk 0:02:23.4]} 19. bxa5 {[%clk 0:03:07.5]} 19... Bh7
{[%clk 0:02:12.3]} 20. Ra4 {[%clk 0:03:07]} 20... Ra8 {[%clk 0:02:12.4]} 21. Rb4
{[%clk 0:03:07.1]} 21... Ra7 {[%clk 0:02:12.8]} 22. Ra1 {[%clk 0:03:00.1]} 22...
f6 {[%clk 0:02:08]} 23. Rd1 {[%clk 0:02:27]} 23... e5 {[%clk 0:02:04.1]} 24. e3
{[%clk 0:02:25.2]} 24... exf4 {[%clk 0:02:02.5]} 25. exf4 {[%clk 0:02:24.7]}
25... Kf7 {[%clk 0:02:00.5]} 26. Kf2 {[%clk 0:02:24.3]} 26... Nf8 {[%clk
0:01:59.6]} 27. Bxf8 {[%clk 0:02:08.3]} 27... Kxf8 {[%clk 0:01:54.3]} 28. Re1
{[%clk 0:02:08.7]} 28... Rd8 {[%clk 0:01:48.8]} 29. Re3 {[%clk 0:01:59.4]} 29...
Rd7 {[%clk 0:01:46]} 30. g4 {[%clk 0:01:59]} 30... Ra8 {[%clk 0:01:45.1]} 31. f5
{[%clk 0:01:39.2]} 31... g6 {[%clk 0:01:44.8]} 32. fxg6 {[%clk 0:01:15.4]} 32...
Bxg6 {[%clk 0:01:45.7]} 33. Ne2 {[%clk 0:01:15.8]} 33... Bc2 {[%clk 0:01:33.7]}
34. Ng3 {[%clk 0:01:02.2]} 34... Re8 {[%clk 0:01:28.8]} 35. Rxe8+ {[%clk
0:00:50.8]} 35... Kxe8 {[%clk 0:01:28.4]} 36. Ke2 {[%clk 0:00:51.3]} 36... Rg7
{[%clk 0:01:26.9]} 37. Kd2 {[%clk 0:00:51.5]} 37... Be4 {[%clk 0:01:18.2]} 38.
Ke3 {[%clk 0:00:51.1]} 38... Rxg4 {[%clk 0:00:54.9]} 39. Rxb7 {[%clk 0:00:50.5]}
39... f5 {[%clk 0:00:53.3]} 40. Ne2 {[%clk 0:00:46.9]} 40... Rh4 {[%clk
0:00:52.9]} 41. b4 {[%clk 0:00:34.8]} 41... Rh3+ {[%clk 0:00:46.8]} 42. Kf4
{[%clk 0:00:34.9]} 42... Rxh2 {[%clk 0:00:46.8]} 43. Ng3 {[%clk 0:00:34.4]}
43... Bd3 {[%clk 0:00:21.4]} 44. Ke5 {[%clk 0:00:25]} 44... Rh3 {[%clk
0:00:18.4]} 45. Ke6 {[%clk 0:00:11.2]} 45... Kd8 {[%clk 0:00:17.4]} 46. Kd6
{[%clk 0:00:09.2]} 46... Ke8 {[%clk 0:00:15.4]} 47. Ke6 {[%clk 0:00:07.8]} 47...
Kd8 {[%clk 0:00:14.7]} 48. Kd6 {[%clk 0:00:08.1]} 48... Kc8 {[%clk 0:00:11.1]}
49. Rc7+ {[%clk 0:00:07.9]} 49... Kb8 {[%clk 0:00:11]} 50. Rg7 {[%clk
0:00:05.9]} 50... f4 {[%clk 0:00:11.3]} 51. Rg8+ {[%clk 0:00:05.9]} 51... Kb7
{[%clk 0:00:10.9]} 52. Rg7+ {[%clk 0:00:05.8]} 52... Kb8 {[%clk 0:00:10.8]} 53.
Rg8+ {[%clk 0:00:06]} 53... Ka7 {[%clk 0:00:09.9]} 54. Rg7+ {[%clk 0:00:04.7]}
54... Kb8 {[%clk 0:00:07.1]} 1/2-1/2

[Event "*** Titled Tuesday Blitz"]
[Site "Chess.com"]
[Date "2020.04.21"]
[Round "5"]
[White "Maitreia"]
[Black "KinKaiser"]
[Result "0-1"]
[WhiteElo "2675"]
[BlackElo "2487"]
[TimeControl "180+1"]
[EndTime "10:57:49 PDT"]
[Termination "KinKaiser won by resignation"]

1. c4 {[%clk 0:03:00.9]} 1... c6 {[%clk 0:02:57.8]} 2. g3 {[%clk 0:03:01.8]}
2... d5 {[%clk 0:02:57.3]} 3. Bg2 {[%clk 0:03:02.7]} 3... Nf6 {[%clk 0:02:55.7]}
4. Nf3 {[%clk 0:03:03.3]} 4... Bf5 {[%clk 0:02:54.6]} 5. O-O {[%clk 0:03:04.2]}
5... e6 {[%clk 0:02:55.1]} 6. b3 {[%clk 0:03:04.1]} 6... Nbd7 {[%clk 0:02:53.7]}
7. Bb2 {[%clk 0:03:04.8]} 7... h6 {[%clk 0:02:51.6]} 8. d3 {[%clk 0:03:05.3]}
8... Be7 {[%clk 0:02:50.2]} 9. Nbd2 {[%clk 0:03:05.9]} 9... Bh7 {[%clk
0:02:50.3]} 10. a3 {[%clk 0:03:06.5]} 10... a5 {[%clk 0:02:48.5]} 11. Qc2 {[%clk
0:03:07.1]} 11... O-O {[%clk 0:02:48.3]} 12. Bc3 {[%clk 0:03:07.7]} 12... Re8
{[%clk 0:02:38.3]} 13. Qb2 {[%clk 0:03:06.7]} 13... Bf8 {[%clk 0:02:31.1]} 14.
b4 {[%clk 0:03:06.6]} 14... axb4 {[%clk 0:02:25.5]} 15. axb4 {[%clk 0:03:07.5]}
15... Rxa1 {[%clk 0:02:23.3]} 16. Rxa1 {[%clk 0:03:08.4]} 16... Qb6 {[%clk
0:02:14.7]} 17. c5 {[%clk 0:03:06]} 17... Qc7 {[%clk 0:02:09.3]} 18. Ne5 {[%clk
0:03:06.5]} 18... b6 {[%clk 0:01:47.7]} 19. cxb6 {[%clk 0:03:06.5]} 19... Qxb6
{[%clk 0:01:44.6]} 20. Rb1 {[%clk 0:03:06.3]} 20... Rb8 {[%clk 0:01:34.6]} 21.
Bd4 {[%clk 0:03:06.5]} 21... c5 {[%clk 0:01:27]} 22. bxc5 {[%clk 0:02:51.6]}
22... Qxb2 {[%clk 0:01:25.3]} 23. Rxb2 {[%clk 0:02:52.5]} 23... Rxb2 {[%clk
0:01:25]} 24. Bxb2 {[%clk 0:02:53.4]} 24... Nxc5 {[%clk 0:01:24.8]} 25. Ndf3
{[%clk 0:02:48.3]} 25... Na4 {[%clk 0:01:22.4]} 26. Bd4 {[%clk 0:02:48.5]} 26...
Nc5 {[%clk 0:01:16.8]} 27. Bxc5 {[%clk 0:02:47.3]} 27... Bxc5 {[%clk 0:01:15.9]}
28. Bf1 {[%clk 0:02:46.5]} 28... Bd6 {[%clk 0:01:12.6]} 29. d4 {[%clk
0:02:42.5]} 29... Ne4 {[%clk 0:01:10.8]} 30. e3 {[%clk 0:02:40.1]} 30... Ng5
{[%clk 0:01:00.3]} 31. Nxg5 {[%clk 0:02:30.3]} 31... hxg5 {[%clk 0:01:00.1]} 32.
f4 {[%clk 0:02:13]} 32... gxf4 {[%clk 0:00:57.1]} 33. exf4 {[%clk 0:02:13.9]}
33... Ba3 {[%clk 0:00:53.8]} 34. Kf2 {[%clk 0:02:13]} 34... f6 {[%clk
0:00:51.2]} 35. Nf3 {[%clk 0:02:07.9]} 35... Be4 {[%clk 0:00:47.7]} 36. Nd2
{[%clk 0:02:07.2]} 36... Bc2 {[%clk 0:00:42.5]} 37. Ke3 {[%clk 0:02:03.9]} 37...
Kf7 {[%clk 0:00:41.9]} 38. Bd3 {[%clk 0:02:04.3]} 38... Ba4 {[%clk 0:00:40.5]}
39. f5 {[%clk 0:02:01.2]} 39... e5 {[%clk 0:00:38.7]} 40. dxe5 {[%clk
0:01:59.5]} 40... fxe5 {[%clk 0:00:38.9]} 41. g4 {[%clk 0:02:00.4]} 41... Bc5+
{[%clk 0:00:36.4]} 42. Ke2 {[%clk 0:01:57.1]} 42... e4 {[%clk 0:00:36.2]} 43.
Ba6 {[%clk 0:01:57.7]} 43... Kf6 {[%clk 0:00:31.7]} 44. h4 {[%clk 0:01:56]}
44... Ke5 {[%clk 0:00:31.1]} 45. h5 {[%clk 0:01:47.7]} 45... Be7 {[%clk
0:00:27]} 46. Bc8 {[%clk 0:01:41.2]} 46... Bg5 {[%clk 0:00:26]} 47. Bb7 {[%clk
0:01:32.3]} 47... Bb5+ {[%clk 0:00:25.6]} 48. Ke1 {[%clk 0:01:32.4]} 48... Kd4
{[%clk 0:00:22.7]} 49. Nb3+ {[%clk 0:01:32]} 49... Ke5 {[%clk 0:00:22.9]} 50.
Nc5 {[%clk 0:01:31.7]} 50... Be3 {[%clk 0:00:18.8]} 51. Ba6 {[%clk 0:01:25.2]}
51... Bxa6 {[%clk 0:00:17.4]} 52. Nxa6 {[%clk 0:01:26.1]} 52... d4 {[%clk
0:00:15.4]} 53. Nc5 {[%clk 0:01:19.4]} 53... Bg5 {[%clk 0:00:14.7]} 54. Nd7+
{[%clk 0:01:15.2]} 54... Kf4 {[%clk 0:00:13.1]} 55. Nf8 {[%clk 0:01:16.1]} 55...
Kxg4 {[%clk 0:00:11.8]} 56. Ne6 {[%clk 0:01:17]} 56... d3 {[%clk 0:00:09.5]} 57.
Nxg7 {[%clk 0:00:48.8]} 57... e3 {[%clk 0:00:09.8]} 58. h6 {[%clk 0:00:46]}
58... Bxh6 {[%clk 0:00:09.5]} 59. f6 {[%clk 0:00:44.4]} 59... Kf3 {[%clk
0:00:08.3]} 60. Nf5 {[%clk 0:00:42.9]} 60... Bf8 {[%clk 0:00:05.9]} 61. Nd4+
{[%clk 0:00:37.6]} 61... Ke4 {[%clk 0:00:05.7]} 62. Nc6 {[%clk 0:00:38.5]} 62...
e2 {[%clk 0:00:05.9]} 63. Kd2 {[%clk 0:00:38.4]} 63... Bh6+ {[%clk 0:00:05.9]}
64. Ke1 {[%clk 0:00:38.5]} 64... Ke3 {[%clk 0:00:06.4]} 0-1

[Event "*** Titled Tuesday Blitz"]
[Site "Chess.com"]
[Date "2020.04.21"]
[Round "5"]
[White "Pomegranate988"]
[Black "ElHelvetico"]
[Result "1/2-1/2"]
[WhiteElo "2492"]
[BlackElo "2644"]
[TimeControl "180+1"]
[EndTime "10:57:50 PDT"]
[Termination "Game drawn by agreement"]

1. d4 {[%clk 0:03:00.9]} 1... f5 {[%clk 0:02:59.5]} 2. c4 {[%clk 0:02:59.1]}
2... Nf6 {[%clk 0:02:58.9]} 3. Nf3 {[%clk 0:02:58.5]} 3... g6 {[%clk 0:02:58.6]}
4. g3 {[%clk 0:02:57.1]} 4... Bg7 {[%clk 0:02:57.3]} 5. Bg2 {[%clk 0:02:57.5]}
5... O-O {[%clk 0:02:47.1]} 6. O-O {[%clk 0:02:57.5]} 6... d6 {[%clk 0:02:42]}
7. b4 {[%clk 0:02:56.3]} 7... Nc6 {[%clk 0:02:40.7]} 8. Qb3 {[%clk 0:02:53.9]}
8... e5 {[%clk 0:02:32.7]} 9. Bb2 {[%clk 0:02:39.8]} 9... e4 {[%clk 0:02:30.6]}
10. Ng5 {[%clk 0:02:35.1]} 10... h6 {[%clk 0:02:23]} 11. Nh3 {[%clk 0:02:32.3]}
11... g5 {[%clk 0:02:09.8]} 12. f3 {[%clk 0:02:19.6]} 12... exf3 {[%clk
0:02:00.9]} 13. exf3 {[%clk 0:02:19]} 13... f4 {[%clk 0:01:52.4]} 14. Nd2 {[%clk
0:02:13.3]} 14... Nh5 {[%clk 0:01:41.4]} 15. g4 {[%clk 0:02:06.7]} 15... Nxd4
{[%clk 0:01:40.1]} 16. Qd3 {[%clk 0:01:58.5]} 16... Ne2+ {[%clk 0:01:33]} 17.
Qxe2 {[%clk 0:01:57.2]} 17... Bxb2 {[%clk 0:01:33.4]} 18. gxh5 {[%clk
0:01:57.1]} 18... Bxa1 {[%clk 0:01:33.8]} 19. Rxa1 {[%clk 0:01:56.5]} 19... Qf6
{[%clk 0:01:30.1]} 20. Re1 {[%clk 0:01:52.3]} 20... Bf5 {[%clk 0:01:29.8]} 21.
Ne4 {[%clk 0:01:48]} 21... Qd4+ {[%clk 0:01:23.5]} 22. Nhf2 {[%clk 0:01:47.6]}
22... Rae8 {[%clk 0:01:22.4]} 23. Qd3 {[%clk 0:01:41.5]} 23... Qxd3 {[%clk
0:01:14.1]} 24. Nxd3 {[%clk 0:01:41.5]} 24... Bxe4 {[%clk 0:01:14.6]} 25. fxe4
{[%clk 0:01:40.3]} 25... g4 {[%clk 0:01:14.6]} 26. Kf2 {[%clk 0:01:37.7]} 26...
f3 {[%clk 0:00:55.5]} 27. Bf1 {[%clk 0:01:36.1]} 27... Re7 {[%clk 0:00:51]} 28.
h3 {[%clk 0:01:35.3]} 28... Rg7 {[%clk 0:00:51.6]} 29. hxg4 {[%clk 0:01:31.7]}
29... Rxg4 {[%clk 0:00:52.5]} 30. Re3 {[%clk 0:01:30.9]} 30... Rh4 {[%clk
0:00:52.1]} 31. Rxf3 {[%clk 0:01:26.9]} 31... Rxe4 {[%clk 0:00:51.3]} 32. Rxf8+
{[%clk 0:01:24.5]} 32... Kxf8 {[%clk 0:00:52.2]} 33. Ne1 {[%clk 0:01:23.6]}
33... Rf4+ {[%clk 0:00:48.9]} 34. Kg2 {[%clk 0:01:22.1]} 34... Rd4 {[%clk
0:00:42.5]} 35. Bd3 {[%clk 0:01:18.1]} 35... d5 {[%clk 0:00:32.6]} 36. cxd5
{[%clk 0:01:13.3]} 36... Rxd5 {[%clk 0:00:33.3]} 37. Be4 {[%clk 0:01:07.8]}
37... Rd2+ {[%clk 0:00:33.1]} 38. Kf3 {[%clk 0:01:05.7]} 38... c6 {[%clk
0:00:33.6]} 39. a4 {[%clk 0:01:02.7]} 39... Ke7 {[%clk 0:00:26]} 40. b5 {[%clk
0:00:58.8]} 40... Rh2 {[%clk 0:00:24.7]} 41. bxc6 {[%clk 0:00:56.8]} 41... bxc6
{[%clk 0:00:24.4]} 42. Bxc6 {[%clk 0:00:55.9]} 42... Rxh5 {[%clk 0:00:24.5]} 43.
Ng2 {[%clk 0:00:53]} 43... Kd6 {[%clk 0:00:22.8]} 44. Bb5 {[%clk 0:00:51.5]}
44... Rc5 {[%clk 0:00:23]} 45. Nf4 {[%clk 0:00:50.2]} 45... Rc3+ {[%clk
0:00:20.6]} 46. Ke4 {[%clk 0:00:49.3]} 46... Kc5 {[%clk 0:00:20.1]} 47. Ne6+
{[%clk 0:00:47.1]} 47... Kb6 {[%clk 0:00:20]} 48. Nf4 {[%clk 0:00:43.5]} 48...
Rc1 {[%clk 0:00:18.4]} 49. Kf5 {[%clk 0:00:41.7]} 49... a6 {[%clk 0:00:17.8]}
50. Be8 {[%clk 0:00:40.7]} 50... Re1 {[%clk 0:00:17.7]} 51. Bd7 {[%clk
0:00:39.1]} 51... Rd1 {[%clk 0:00:18]} 52. Be8 {[%clk 0:00:38.9]} 52... Rd4
{[%clk 0:00:18.6]} 53. Ne6 {[%clk 0:00:36.9]} 53... Rd5+ {[%clk 0:00:17.8]} 54.
Ke4 {[%clk 0:00:35.6]} 54... Ra5 {[%clk 0:00:16.4]} 55. Nf4 {[%clk 0:00:33.9]}
55... Rg5 {[%clk 0:00:16.1]} 56. Nd5+ {[%clk 0:00:32.5]} 56... Kc5 {[%clk
0:00:16]} 57. Nf4 {[%clk 0:00:32.8]} 57... Kb4 {[%clk 0:00:15.3]} 58. Nd5+
{[%clk 0:00:31.9]} 58... Ka3 {[%clk 0:00:15.3]} 59. Nc7 {[%clk 0:00:31]} 59...
a5 {[%clk 0:00:14.2]} 60. Ne6 {[%clk 0:00:29.8]} 60... Rg4+ {[%clk 0:00:14.3]}
61. Kf5 {[%clk 0:00:28.7]} 61... Rxa4 {[%clk 0:00:13.7]} 62. Bxa4 {[%clk
0:00:27.2]} 62... Kxa4 {[%clk 0:00:14.6]} 63. Nd4 {[%clk 0:00:26.1]} 63... Kb4
{[%clk 0:00:14.6]} 64. Nc6+ {[%clk 0:00:25.8]} 64... Kb5 {[%clk 0:00:14.9]} 65.
Nxa5 {[%clk 0:00:26.7]} 65... Kxa5 {[%clk 0:00:15.8]} 66. Kg6 {[%clk 0:00:26.6]}
66... Kb5 {[%clk 0:00:13.8]} 1/2-1/2